Cogmind - Beta 15 @@@ ROGUE MODE // 2025.07.15 @ 08:46:41 Player: cingulata Result: Destroyed by G-34 Mercenary with Small Laser Performance ------------- Evolutions (0) 0 Regions Visited (1) 200 Robots Destroyed (17) 85 Value Destroyed (476) 476 Prototype IDs (0) 0 Alien Tech Used (0) 0 Bonus (0) 0 TOTAL SCORE: 761 Bonus ------- None Cogmind --------- Core Integrity 0/250 Matter 296/300 Energy 122/125 System Corruption 0% Temperature Hot (218) Movement Rolling (170) Ox6 Location -10/Materials Parts ------- > --- POWER (1) -------- Light Ion Engine > --- PROPULSION (2) --- Wheel > --- UTILITY (2) ------ Large Storage Unit High-capacity Storage Unit > --- WEAPON (2) ------- Beam Cannon Light Assault Rifle > --- INVENTORY (20) --- Ion Engine Light Nuclear Core Light Treads Light Treads Aluminum Leg Aluminum Leg Aluminum Leg Heat Sink Small Storage Unit Structural Scanner Seismic Detector Weapon Shielding Small Laser Small Laser Small Laser Light Assault Rifle Light Assault Rifle Light Assault Rifle Hammer Mining Claw Peak State ------------ > --- POWER ------------ Light Ion Engine > --- PROPULSION ------- Wheel Wheel > --- UTILITY ---------- Large Storage Unit High-capacity Storage Unit > --- WEAPON ----------- Beam Cannon Light Assault Rifle > --- INVENTORY -------- Ion Engine Light Nuclear Core Light Treads Light Treads Aluminum Leg Aluminum Leg Aluminum Leg Heat Sink Small Storage Unit Seismic Detector Weapon Shielding Small Laser Small Laser Small Laser Light Assault Rifle Light Assault Rifle Light Assault Rifle Hammer Mining Claw [Rating: 9] Favorites ----------- Power Light Ion Engine Engine Light Ion Engine Propulsion Aluminum Leg Treads Light Treads Leg Aluminum Leg Wheel Wheel Utility Large Storage Unit Device Seismic Detector Storage Large Storage Unit Protection Propulsion Shielding Weapon Small Laser Energy Gun Small Laser Energy Cannon Beam Cannon Ballistic Gun Light Assault Rifle Build | -11 -10 ------- Run | Yrd Mat Slots Evolved . | . . Power . | . . Propulsion . | . . Utility . | . . Weapon . | . . Parts Attached 15 | 1 14 Power 1 | . 1 Engine 1 | . 1 Core . | . . Reactor . | . . Propulsion 6 | . 6 Treads 1 | . 1 Leg 3 | . 3 Wheel 2 | . 2 Hover . | . . Flight . | . . Utility 4 | 1 3 Device 1 | 1 . Storage 2 | . 2 Processor . | . . Hackware . | . . Protection 1 | . 1 Artifact . | . . Weapon 4 | . 4 Energy Gun 2 | . 2 Energy Cannon 1 | . 1 Ballistic Gun 1 | . 1 Ballistic Cannon . | . . Launcher . | . . Special Weapon . | . . Impact Weapon . | . . Slashing Weapon . | . . Piercing Weapon . | . . Special Melee Weapon . | . . Unidentified Prototypes . | . . Parts Lost 5 | . 5 Power 1 | . 1 Propulsion 2 | . 2 Utility 1 | . 1 Weapon 1 | . 1 Highest Loss Streak 2 | . 2 To Critical Strikes . | . . Average Backups 11 | 6 11 Power . | 1 . Propulsion 4 | 4 4 Utility 2 | . 2 Weapon 2 | 1 2 Tool/Special . | . . Unused Backups 16 | . 16 Power 3 | . 3 Propulsion 2 | . 2 Utility 4 | . 4 Weapon 7 | . 7 Tool/Special . | . . Average Slot Usage (%) 96 | . 96 Engine 13 | . 13 Leg 18 | . 18 Wheel 8 | . 8 Device 3 | . 3 Storage 14 | . 14 Protection 6 | . 6 Energy Gun 18 | . 18 Energy Cannon 3 | . 3 Ballistic Gun 5 | . 5 Peak Build Rating 9 | 7 9 Average Rating 7 | 6 7 On Entrance 6 | 6 7 Naked Turns . | . . Heaviest Build 67 | 11 67 Greatest Support 20 | 20 20 Greatest Overweight (x) 3 | . 3 Average Overweight (x) 1 | . 1 Largest Inventory Capacity 20 | 8 20 Average Capacity 15 | 8 15 Most Carried 20 | 7 20 Average Carried 11 | 6 11 Final Capacity 20 | 8 20 Final Carried 20 | 6 20 Class Distribution -------------------- 100% | Mutant Dominant Class ---------------- Mutant | -10/Materials Resources | -11 -10 ----------- Run | Yrd Mat Matter Collected 479 | 216 263 Remotely . | . . Salvage Created 731 | 114 617 Parts 32 | 7 25 Haulers Intercepted 1 | . 1 Recyclers Shooed . | . . Parts Field Recycled . | . . Retrieved Matter . | . . Parts Self-Destructed . | . . Prevented . | . . Kills | -11 -10 ------- Run | Yrd Mat Combat Hostiles Destroyed 11 | . 11 Guns 8 | . 8 Cannons 3 | . 3 Classes Destroyed 7 | 2 5 Worker 1 | . 1 Builder 1 | . 1 Tunneler 1 | 1 . Hauler 1 | . 1 Recycler 1 | 1 . Operator 1 | . 1 Grunt 11 | . 11 Best Kill Streak 3 | 2 3 Combat Bots Only 2 | . 2 Max Kills in Single Turn 1 | 1 1 Gunslinging . | . . Exploded . | . . Melee . | . . Uniques/NPCs Destroyed . | . . Combat | -11 -10 -------- Run | Yrd Mat Hostile Shots Fired 96 | . 96 Missed 16 | . 16 Hits 80 | . 80 Projectile 80 | . 80 Critical Strikes 1 | . 1 Actively Blocked 1 | . 1 Damage Taken 1089 | . 1089 Core 251 | . 251 Absorbed by Shields . | . . Redirected to Shielding 76 | . 76 Regen/Repaired (Parts) 26 | . 26 Core Remaining (%) 100 | 100 . Volleys Fired 84 | 6 78 Largest 2 | 2 2 Hottest 100 | 60 100 Shots Fired 167 | 12 155 Gun 140 | 12 128 Cannon 27 | . 27 Launcher . | . . Special . | . . Kinetic 42 | 6 36 Thermal 125 | 6 119 Explosive . | . . Electromagnetic . | . . Robot Hit Streak 11 | 3 11 Robot Miss Streak 5 | 1 5 Penetration Max . | . . Secondary Targets 1 | . 1 Max Gunslinging Chain 1 | . 1 Shots Hit Robots 109 | 7 102 Core Hits 38 | 4 34 Critical Kills 1 | . 1 Critical Parts Destroyed . | . . Critical Strikes 1 | . 1 Destroy 1 | . 1 Melee Attacks . | . . Impact . | . . Slashing . | . . Piercing . | . . Sneak Attacks . | . . Combat Hostiles . | . . Follow-up Attacks . | . . Damage Inflicted 1272 | 60 1212 Guns 968 | 60 908 Cannons 304 | . 304 Explosions . | . . Melee . | . . Ramming . | . . Kinetic 207 | 38 169 Thermal 1065 | 22 1043 Explosive . | . . Electromagnetic . | . . Impact . | . . Slashing . | . . Piercing . | . . Highest Corruption . | . . Average Corruption . | . . Corruption Purged . | . . Corruption Blocked . | . . Overload Shots . | . . Overflow Damage 8 | . 8 Projectiles 8 | . 8 Explosions . | . . Melee . | . . Knockbacks . | . . Impact . | . . Kinetic . | . . Secondary . | . . Self-Inflicted Damage . | . . Shots . | . . Rammed . | . . Targets Rammed . | . . Kicked . | . . Crushed . | . . Highest Temperature 400 | 40 400 Average Temperature 118 | 17 123 Received Heat Transfer 612 | . 612 Effects 5 | . 5 Shutdowns 1 | . 1 Interference 2 | . 2 Matter Decay 1 | . 1 Damage (minor) 1 | . 1 Siege Activations . | . . Martial Activations . | . . Shielding Activations . | . . Robots Disrupted . | . . Combat Hostiles . | . . Robots Corrupted . | . . Combat Hostiles . | . . Parts Fried . | . . Impact Corruptions . | . . Robots Melted . | . . Combat Hostiles . | . . Parts Melted 6 | . 6 Heat Transferred 2304 | 50 2254 Parts Sabotaged . | . . Parts Stolen . | . . Parts Stripped . | . . Power Chain Reactions . | . . Alert | -11 -10 ------- Run | Yrd Mat Maximum Alert Level . | . . Low Security (%) 100 | 100 100 Level 1 . | . . Level 2 . | . . Level 3 . | . . Level 4 . | . . Level 5 . | . . High Security . | . . Max Security . | . . Peak Influence 78 | 10 78 Initial . | . . Average 11 | 2 12 Influence Increases 333 | 10 323 Destroy 0b10 Robot/C 220 | . 220 Destroy 0b10 Robot/NC 30 | 10 20 Destroy Leader 62 | . 62 Successful Hack 5 | . 5 Destroy Structure 1 | . 1 Lose Combat Pursuer 15 | . 15 Influence Decreases 255 | 10 245 Time Decay 225 | 10 215 Lost Part 30 | . 30 Squads Dispatched 2 | . 2 Investigation . | . . Extermination . | . . Reinforcement 2 | . 2 Assault . | . . Garrison . | . . Intercept . | . . Searches Triggered . | . . Construction Impeded . | . . Haulers Reinforced . | . . Active Scanning Responses . | . . Cargo Convoy Interrupts . | . . Stealth | -11 -10 --------- Run | Yrd Mat Distress Signals 3 | . 3 Communications Jammed . | . . Distress Signals . | . . Times Spotted 27 | . 27 Peak Tracking Total 4 | . 4 Tactical Retreats 1 | . 1 Traps | -11 -10 ------- Run | Yrd Mat Traps Triggered 1 | . 1 Indirectly . | . . Trap Hack Attempts . | . . Triggered . | . . Disarmed . | . . Reprogrammed . | . . Reused . | . . Traps Extracted . | . . Installed . | . . Triggered . | . . Machines | -11 -10 ---------- Run | Yrd Mat Machines Disabled . | . . Max in Single Turn . | . . Machines Repaired . | . . Machines Dismantled . | . . Machines Sabotaged . | . . Overloaded Fab Kills . | . . Hacking | -11 -10 --------- Run | Yrd Mat Machines Accessed 6 | . 6 Terminals 4 | . 4 Fabricators . | . . Repair Stations 1 | . 1 Recycling Units 1 | . 1 Scanalyzers . | . . Garrison Access . | . . Total Hacks 15 | . 15 Successful 9 | . 9 Failed 6 | . 6 Catastrophic . | . . Database Lockouts . | . . Manual 9 | . 9 Terminals 12 | . 12 Fabricators . | . . Repair Stations 2 | . 2 Recycling Units 1 | . 1 Scanalyzers . | . . Garrison Access . | . . Terminal Hacks 3 | . 3 Robot Analysis 1 | . 1 Locate Traps 2 | . 2 Fabricator Hacks . | . . Repair Station Hacks 2 | . 2 Scan Component 1 | . 1 Repair 1 | . 1 Recycling Unit Hacks 1 | . 1 Retrieve Components 1 | . 1 Scanalyzer . | . . Garrison Access Hacks . | . . Unauthorized Hacks 3 | . 3 Terminals 3 | . 3 Botnet 2 | . 2 Operators 1 | . 1 Fabricators . | . . Repair Stations . | . . Recycling Units . | . . Scanalyzers . | . . Garrison Access . | . . Data Cores Recovered . | . . Used . | . . Hacking Detections 3 | . 3 Full Trace Events . | . . Feedback Events . | . . Feedback Blocked . | . . Robot Schematics Acquired . | . . Robots Built . | . . Authchips . | . . Time . | . . Total Robot Build Rating . | . . Part Schematics Acquired . | . . Parts Built . | . . Authchips . | . . Time . | . . Total Part Build Rating . | . . Parts Repaired 1 | . 1 Time 26 | . 26 Parts Recycled . | . . Recycled Matter . | . . Retrieved Matter . | . . Retrieved Components 1 | . 1 Parts Scanalyzed . | . . Part Schematics Acquired . | . . Parts Damaged . | . . Bothacking | -11 -10 ------------ Run | Yrd Mat Used RIF Installer . | . . Robots Hacked . | . . Non-combat . | . . Combat . | . . Robot Hacks Applied . | . . Relay Couplers Released . | . . Fabnet Peak Effective % . | . . Robots Rewired . | . . Allies Hacked . | . . Hacks Repelled . | . . Allies | -11 -10 -------- Run | Yrd Mat Total Allies . | . . Largest Group . | . . Highest-Rated Group . | . . Highest-Rated Ally . | . . Total Orders . | . . Ally Attacks . | . . Total Damage . | . . Kills . | . . Allies Corrupted . | . . Allies Melted . | . . Intel | -11 -10 ------- Run | Yrd Mat Active Infowar (turns) 290 | 17 273 Seismic 290 | 17 273 Robot Analysis Total 1 | . 1 Derelict Logs Recovered . | . . Drone Launches . | . . Drone Recoveries . | . . Exploration | -11 -10 ------------- Run | Yrd Mat Turns Passed 1136 | 42 1094 Spaces Moved 540 | 19 521 Core . | . . Treads . | . . Legs 329 | 19 310 Wheels 211 | . 211 Hover . | . . Flight . | . . Fastest Speed 110 | 120 110 Average Speed 143 | 120 144 Slowest Speed 190 | 120 190 Overloaded Moves . | . . Propulsion Burnouts . | . . Robots Hopped . | . . Potential Cave-ins . | . . Cave-ins Triggered . | . . Exploration Rate (%) 42 | 3 82 Regions Visited 1 Branch Regions . Pre-discovered Areas . | . . Known Exits Taken . | . . Unknown Exits Taken 1 | 1 . Scrap Searched . | . . Spaces Dug . | . . Terrain Destroyed . | . . Melee . | . . Projectile . | . . AOE . | . . Terrain Rammed . | . . Walls Destroyed . | . . Machines Disabled . | . . Actions | -11 -10 --------- Run | Yrd Mat Total 735 | 27 708 Wait 78 | . 78 Move 539 | 18 521 Hop . | . . Pick Up 14 | 1 13 Fast Attach 3 | 1 2 Attach 5 | . 5 Detach 1 | . 1 Swap 10 | . 10 Drop 1 | 1 . Fire 84 | 6 78 Melee . | . . Ram . | . . Kick . | . . Crush . | . . Escape Stasis . | . . Rewire . | . . Trap . | . . Miscellaneous . | . . Route ------- -11/Scrapyard -10/Materials (discovered 4 exits: [*Mat x2] / [*Min] / [*Sub]) History --------- Turn | Location | Event 18 | -11/Scrapyard | Discovered new exit (range 3) 43 | -11/Scrapyard | Entered Materials 159 | -10/Materials | Discovered new exit (range 7) 300 | -10/Materials | Discovered new exit (range 11) 337 | -10/Materials | Build established: Mutant 539 | -10/Materials | Repaired Propulsion Shielding 743 | -10/Materials | Discovered new exit (range 10) 835 | -10/Materials | Discovered new exit (range 15) 943 | -10/Materials | Derelicts attacked the area 1066 | -10/Materials | Core integrity fell below 50% 1130 | -10/Materials | Core integrity fell below 20% 1137 | -10/Materials | Destroyed by G-34 Mercenary with Small Laser Last Messages --------------- 01090_ Overheating: Matter decay (-74). 01090_ Acquired 23 matter. 01091_ Power failure, Lgt. Ion Engine shutdown. 01092_ K-01 Serf collects debris. 01094_ Overheating: Wheel damaged (-6). 01094_ Acquired Lgt. Nuclear Core. 01096_ K-01 Serf collects debris. 01108_ G-47 Trooper destroyed. 01111_ ALERT: Hostiles spotted, dispatching reinforcements to Terminal M004. 01112_ Acquired 54 matter. 01114_ K-01 Serf collects debris. 01117_ Acquired Structural Scanner. 01118_ K-01 Serf collects debris. 01125_ Wheel destroyed. 01135_ U-05 Engineer builds a Door. 01136_ Heat Sink melted. 01136_ Ion Engine melted. 01136_ Sml. Laser melted. 01136_ G-34 Mercenary destroyed. Map ----- +----------------------------------------------------+ | <######### # #??####### | | ?????????# # ! #??# # | | ?????????# # !! #??# """# | | ?????????# # ! #### """# | | ##???????######### + """# | | #???????????????# # # | | #???????????????###### # # | | #????????????????????# # # | | ##????????????????????# ######## ####### | | ????????????#+######### #??????# #?????? | | ????????????# ######?# #?????? | | ????????????# ^ # #?# #?????? | | ????????????# ^ # ! ### ###???? | | ??????????? # ^ # # #???? | | ??????????" + ^^ # ! # #???? | | ????????????# ^ + + T #???? | | ????????????????####### # # #???? | | ??????????????????????# # # #???? | | ??????????????????????# # // ## ##???? | | ?????????????????###### # / ## #????? | | ?????????????????# # ####### ###### | | ?????????????????# # #?????# #! # | | ?????????????????# # ####### #! # | | ?????????????????# #!= ^^ #! # | | ?????????????????# =#u ^ ^ # # | | ?????????????????# =!+%=@ ^ ^ + # | | ?????????????????# *!##g###^ # # | | ?????????????????# ##!#?# ^ # # | | ?????????????????# ##[#?# ^ #! # | | ?????????????????#######/###"" ^ # # | | ??????????????????# #"" ^ ###### | | ??????????????????# """ #"T ^ !""#??? | | ??????????????????# =""" #"" Y"#??? | | ??????????????????# %""" #"" ""#??? | | ??????????????????# + ###??? | | ??????????????????# """ # #????? | | ??????????????????# """ # < ######????? | | ??????????????????# """ # #?????????? | | ??????????????????# #####?????????? | | ??????????????????##########?????????????? | | ?????????????????????????????????????????? | | ?????????????????????????????????????????? | | ?????????????????????????????????????????? | | ?????????????????????????????????????????? | | ?????????????????????????????????????????? | | | | | | | | | | | +----------------------------------------------------+ Best States ------------- Heat Dissipation 25 Energy Generation 10 Energy Capacity 125 Matter Stores 300 Matter Capacity 300 Sight Range 16 Terrain Scan Density 10 Propulsion Shielding 33 Evasion (%) 55 Item Schematics ----------------- None Robot Schematics ------------------ None Fabricated ------------ Nothing Repaired ---------- Propulsion Shielding | 48% | -10/Materials Alien Tech Used ----------------- None Achievements -------------- None Challenges ------------ None Game ------ Seed CouplerDataInterpreter Manual? 0 Play Time 00:10:14 Cumulative 53.7 hours Start 2025.07.15 @ 08:34:45 End 2025.07.15 @ 08:46:41 Sessions 1 Manual Loads 0 Difficulty Rogue Special Mode None Game No. 38 Rogue 38 Adventurer 0 Explorer 0 Win Type - Total 1 Types 1/0/0/0/0/0/0/0/0/0 Lore% 24 Gallery% 29 Achievement% 28 Wizard Run 0 Options --------- Layout 2 ASCII 0 Keyboard 0 Movement Numpad Keybinds 0 Fullscreen 1 Font 32/SmallcapsGlow Map View 50x44 Zoom Use 0% Tactical HUD 1 Map Filters NONE Filters NONE Steam 1 RUN: 5fecb3c5-fb23-4301-8866-afb659365812